[Event "December 5 Early 2023"]
[Site "https://www.chess.com"]
[Date "2023.12.05"]
[Round "4"]
[White "Janaszak, Dawid"]
[Black "Seder, Mohammed"]
[Result "0-1"]
[Board "102"]
[TimeControl "180+1"]
[WhiteFideId "1119206"]
[BlackFideId "11505567"]
[WhiteElo "2616"]
[BlackElo "2361"]
[WhiteTeam "POL"]
[BlackTeam "PLE"]
[WhiteClock "0:00:09"]
[BlackClock "0:00:07"]

1. e4 {[%clk 0:03:00]}  c5 {[%clk 0:02:59]} 2. Nc3 {[%clk 0:02:59]}  d6 {[%clk 0:02:58]} 3. f4 {[%clk 0:02:59]}  g6 {[%clk 0:02:59]} 4. Nf3 {[%clk 0:03:00]}  Bg7 {[%clk 0:02:59]} 5. Bc4 {[%clk 0:03:00]}  e6 {[%clk 0:02:59]} 6. O-O {[%clk 0:03:01]}  Ne7 {[%clk 0:02:59]} 7. d3 {[%clk 0:02:58]}  Nbc6 {[%clk 0:03:00]} 8. Qe1 {[%clk 0:02:54]}  a6 {[%clk 0:03:00]} 9. a3 {[%clk 0:02:52]}  b6 {[%clk 0:03:00]} 10. Kh1 {[%clk 0:02:48]}  Bb7 {[%clk 0:02:59]} 11. f5 {[%clk 0:02:46]}  gxf5 {[%clk 0:02:26]} 12. Bg5 {[%clk 0:02:43]}  Ne5 {[%clk 0:02:10]} 13. Nxe5 {[%clk 0:02:22]}  Bxe5 {[%clk 0:02:05]} 14. exf5 {[%clk 0:02:22]}  Rg8 {[%clk 0:02:01]} 15. Qh4 {[%clk 0:02:10]}  Nxf5 {[%clk 0:01:15]} 16. Rxf5 {[%clk 0:02:02]}  exf5 {[%clk 0:00:55]} 17. Bxf7+ {[%clk 0:00:25]}  Kxf7 {[%clk 0:00:52]} 18. Qxh7+ {[%clk 0:00:25]}  Ke6 {[%clk 0:00:20]} 19. h4 {[%clk 0:00:25]}  Rxg5 {[%clk 0:00:14]} 20. Qxb7 {[%clk 0:00:20]}  Rg4 {[%clk 0:00:07]} 21. Qd5+ {[%clk 0:00:17]}  Kd7 {[%clk 0:00:07]} 22. Qf7+ {[%clk 0:00:17]}  Kc8 {[%clk 0:00:07]} 23. Qxf5+ {[%clk 0:00:16]}  Qd7 {[%clk 0:00:06]} 24. Qf8+ {[%clk 0:00:14]}  Kb7 {[%clk 0:00:06]} 25. Qf3+ {[%clk 0:00:14]}  Ka7 {[%clk 0:00:05]} 26. g3 {[%clk 0:00:10]}  Rxg3 {[%clk 0:00:05]} 27. Qf1 {[%clk 0:00:08]}  Qh3+ {[%clk 0:00:04]} 28. Qxh3 {[%clk 0:00:08]}  Rxh3+ {[%clk 0:00:05]} 29. Kg2 {[%clk 0:00:09]}  Rg3+ {[%clk 0:00:06]} 30. Kf2 {[%clk 0:00:09]}  Rf8+ {[%clk 0:00:06]} 31. Ke2 {[%clk 0:00:09]}  Bd4 {[%clk 0:00:07]} 32. Ne4 {[%clk 0:00:10]}  Rg2+ {[%clk 0:00:07]} 33. Ke1 {[%clk 0:00:10]}  Rg1+ {[%clk 0:00:07]} 34. Ke2 {[%clk 0:00:10]}  Rxa1 {[%clk 0:00:08]} 35. c3 {[%clk 0:00:09]}  Bg1 {[%clk 0:00:07]} 0-1

[Event "December 5 Early 2023"]
[Site "https://www.chess.com"]
[Date "2023.12.05"]
[Round "4"]
[White "Gruzman, Ilya"]
[Black "Ianovsky, Matias Manuel"]
[Result "1-0"]
[Board "104"]
[TimeControl "180+1"]
[WhiteFideId "2812703"]
[BlackFideId "112470"]
[WhiteElo "2320"]
[BlackElo "2612"]
[WhiteTeam "ISR"]
[BlackTeam "ARG"]
[WhiteClock "0:00:09"]
[BlackClock "0:00:11"]

1. d4 {[%clk 0:03:00]}  Nf6 {[%clk 0:02:58]} 2. c4 {[%clk 0:03:00]}  g6 {[%clk 0:02:58]} 3. Nc3 {[%clk 0:03:00]}  d5 {[%clk 0:02:58]} 4. cxd5 {[%clk 0:03:00]}  Nxd5 {[%clk 0:02:59]} 5. e4 {[%clk 0:03:00]}  Nxc3 {[%clk 0:02:59]} 6. bxc3 {[%clk 0:03:01]}  Bg7 {[%clk 0:02:59]} 7. Bc4 {[%clk 0:03:02]}  c5 {[%clk 0:02:59]} 8. Ne2 {[%clk 0:03:02]}  O-O {[%clk 0:02:58]} 9. Be3 {[%clk 0:03:02]}  Nc6 {[%clk 0:02:58]} 10. O-O {[%clk 0:03:01]}  cxd4 {[%clk 0:02:54]} 11. cxd4 {[%clk 0:03:02]}  b6 {[%clk 0:02:53]} 12. Qd2 {[%clk 0:03:00]}  Bb7 {[%clk 0:02:49]} 13. Rac1 {[%clk 0:02:59]}  Rc8 {[%clk 0:02:47]} 14. Rfd1 {[%clk 0:02:58]}  Na5 {[%clk 0:02:40]} 15. Bd3 {[%clk 0:02:58]}  e5 {[%clk 0:02:21]} 16. d5 {[%clk 0:02:56]}  f5 {[%clk 0:02:21]} 17. f3 {[%clk 0:02:56]}  Qd7 {[%clk 0:01:31]} 18. Rxc8 {[%clk 0:02:32]}  Rxc8 {[%clk 0:01:31]} 19. Rc1 {[%clk 0:02:32]}  Rd8 {[%clk 0:01:28]} 20. Qb4 {[%clk 0:02:29]}  Bf8 {[%clk 0:01:20]} 21. Qb2 {[%clk 0:02:27]}  Bd6 {[%clk 0:01:17]} 22. Bg5 {[%clk 0:02:15]}  Rc8 {[%clk 0:01:12]} 23. exf5 {[%clk 0:02:10]}  gxf5 {[%clk 0:01:10]} 24. Bf6 {[%clk 0:02:01]}  Rxc1+ {[%clk 0:01:07]} 25. Qxc1 {[%clk 0:02:01]}  Bc5+ {[%clk 0:00:37]} 26. Kh1 {[%clk 0:01:46]}  f4 {[%clk 0:00:37]} 27. Be4 {[%clk 0:00:37]}  Bxd5 {[%clk 0:00:33]} 28. Bxe5 {[%clk 0:00:37]}  Bxe4 {[%clk 0:00:32]} 29. fxe4 {[%clk 0:00:38]}  f3 {[%clk 0:00:30]} 30. Qg5+ {[%clk 0:00:33]}  Kf8 {[%clk 0:00:27]} 31. Qf6+ {[%clk 0:00:22]}  Ke8 {[%clk 0:00:27]} 32. Qh8+ {[%clk 0:00:21]}  Bf8 {[%clk 0:00:28]} 33. gxf3 {[%clk 0:00:20]}  Qd3 {[%clk 0:00:26]} 34. Ng1 {[%clk 0:00:21]}  Nc4 {[%clk 0:00:23]} 35. Bg7 {[%clk 0:00:20]}  Qd6 {[%clk 0:00:20]} 36. Qxh7 {[%clk 0:00:19]}  Bxg7 {[%clk 0:00:19]} 37. Qxg7 {[%clk 0:00:19]}  Ne5 {[%clk 0:00:20]} 38. Qxa7 {[%clk 0:00:18]}  Nd3 {[%clk 0:00:20]} 39. Qa8+ {[%clk 0:00:17]}  Ke7 {[%clk 0:00:18]} 40. Qb7+ {[%clk 0:00:16]}  Kf8 {[%clk 0:00:17]} 41. Qh7 {[%clk 0:00:14]}  Qd4 {[%clk 0:00:14]} 42. Qh6+ {[%clk 0:00:11]}  Ke8 {[%clk 0:00:13]} 43. Qh5+ {[%clk 0:00:11]}  Kf8 {[%clk 0:00:13]} 44. Qf5+ {[%clk 0:00:10]}  Ke8 {[%clk 0:00:13]} 45. Qg6+ {[%clk 0:00:07]}  Ke7 {[%clk 0:00:12]} 46. h4 {[%clk 0:00:07]}  Nf2+ {[%clk 0:00:11]} 47. Kg2 {[%clk 0:00:07]}  Nd3 {[%clk 0:00:12]} 48. Qg5+ {[%clk 0:00:07]}  Ke8 {[%clk 0:00:12]} 49. Nh3 {[%clk 0:00:07]}  Qb2+ {[%clk 0:00:12]} 50. Kg3 {[%clk 0:00:08]}  Qd4 {[%clk 0:00:11]} 51. Qg6+ {[%clk 0:00:07]}  Ke7 {[%clk 0:00:11]} 52. Qh7+ {[%clk 0:00:06]}  Ke8 {[%clk 0:00:11]} 53. Ng5 {[%clk 0:00:06]}  Qe5+ {[%clk 0:00:09]} 54. Kg4 {[%clk 0:00:06]}  Nf2+ {[%clk 0:00:08]} 55. Kh5 {[%clk 0:00:05]}  Nd3 {[%clk 0:00:08]} 56. Qf7+ {[%clk 0:00:04]}  Kd8 {[%clk 0:00:08]} 57. Kh6 {[%clk 0:00:04]}  Nf4 {[%clk 0:00:07]} 58. Qxf4 {[%clk 0:00:05]}  Qh8+ {[%clk 0:00:06]} 59. Kg6 {[%clk 0:00:05]}  Qe8+ {[%clk 0:00:07]} 60. Kf5 {[%clk 0:00:05]}  Qc6 {[%clk 0:00:08]} 61. Kg4 {[%clk 0:00:06]}  Qd7+ {[%clk 0:00:09]} 62. Qf5 {[%clk 0:00:07]}  Qd1 {[%clk 0:00:10]} 63. Nf7+ {[%clk 0:00:06]}  Ke7 {[%clk 0:00:10]} 64. Ng5 {[%clk 0:00:06]}  Qg1+ {[%clk 0:00:11]} 65. Kf4 {[%clk 0:00:07]}  Qc1+ {[%clk 0:00:11]} 66. Ke5 {[%clk 0:00:07]}  Qc7+ {[%clk 0:00:10]} 67. Kd4 {[%clk 0:00:07]}  Qc1 {[%clk 0:00:10]} 68. Qf7+ {[%clk 0:00:07]}  Kd8 {[%clk 0:00:10]} 69. Ne6+ {[%clk 0:00:06]}  Kc8 {[%clk 0:00:11]} 70. Qc7+ {[%clk 0:00:07]}  Qxc7 {[%clk 0:00:11]} 71. Nxc7 {[%clk 0:00:08]}  Kxc7 {[%clk 0:00:11]} 72. h5 {[%clk 0:00:09]} 1-0

[Event "December 5 Early 2023"]
[Site "https://www.chess.com"]
[Date "2023.12.05"]
[Round "4"]
[White "Principe, Gerson"]
[Black "Borawski, Jakub"]
[Result "0-1"]
[Board "105"]
[TimeControl "180+1"]
[WhiteFideId "3804550"]
[BlackFideId "1143000"]
[WhiteElo "2610"]
[BlackElo "2241"]
[WhiteTeam "PER"]
[BlackTeam "POL"]
[WhiteClock "0:00:00"]
[BlackClock "0:00:03"]

1. d4 {[%clk 0:02:59]}  Nf6 {[%clk 0:02:59]} 2. Nf3 {[%clk 0:02:59]}  e6 {[%clk 0:02:59]} 3. c4 {[%clk 0:02:59]}  Bb4+ {[%clk 0:02:59]} 4. Bd2 {[%clk 0:02:59]}  Qe7 {[%clk 0:02:59]} 5. Nc3 {[%clk 0:02:57]}  b6 {[%clk 0:02:59]} 6. g3 {[%clk 0:02:53]}  Bb7 {[%clk 0:02:59]} 7. Bg2 {[%clk 0:02:54]}  Bxc3 {[%clk 0:02:59]} 8. Bxc3 {[%clk 0:02:54]}  Ne4 {[%clk 0:03:00]} 9. Rc1 {[%clk 0:02:54]}  d6 {[%clk 0:02:58]} 10. O-O {[%clk 0:02:54]}  O-O {[%clk 0:02:55]} 11. Qc2 {[%clk 0:02:38]}  Nxc3 {[%clk 0:02:54]} 12. Qxc3 {[%clk 0:02:28]}  Nd7 {[%clk 0:02:52]} 13. b4 {[%clk 0:02:28]}  c5 {[%clk 0:02:49]} 14. a3 {[%clk 0:02:28]}  Rac8 {[%clk 0:02:47]} 15. Rfd1 {[%clk 0:02:25]}  Nf6 {[%clk 0:02:37]} 16. e3 {[%clk 0:02:14]}  Rfd8 {[%clk 0:02:36]} 17. Qb2 {[%clk 0:02:12]}  h5 {[%clk 0:02:17]} 18. h4 {[%clk 0:02:03]}  Ng4 {[%clk 0:02:11]} 19. Qe2 {[%clk 0:01:29]}  Qf6 {[%clk 0:02:07]} 20. Ng5 {[%clk 0:01:24]}  Bxg2 {[%clk 0:02:06]} 21. Kxg2 {[%clk 0:01:25]}  e5 {[%clk 0:01:51]} 22. dxe5 {[%clk 0:01:09]}  dxe5 {[%clk 0:01:49]} 23. Rd5 {[%clk 0:00:59]}  cxb4 {[%clk 0:01:42]} 24. Rxd8+ {[%clk 0:00:58]}  Rxd8 {[%clk 0:01:39]} 25. axb4 {[%clk 0:00:59]}  Qc6+ {[%clk 0:01:37]} 26. Qf3 {[%clk 0:00:38]}  Qxf3+ {[%clk 0:01:36]} 27. Nxf3 {[%clk 0:00:38]}  e4 {[%clk 0:01:28]} 28. Nd4 {[%clk 0:00:37]}  Ne5 {[%clk 0:01:28]} 29. c5 {[%clk 0:00:36]}  Rc8 {[%clk 0:01:25]} 30. c6 {[%clk 0:00:33]}  Nd3 {[%clk 0:01:13]} 31. Rc4 {[%clk 0:00:26]}  a6 {[%clk 0:01:12]} 32. b5 {[%clk 0:00:24]}  Ne5 {[%clk 0:01:10]} 33. Rc2 {[%clk 0:00:15]}  axb5 {[%clk 0:01:09]} 34. c7 {[%clk 0:00:16]}  Nd3 {[%clk 0:00:51]} 35. Kf1 {[%clk 0:00:12]}  b4 {[%clk 0:00:46]} 36. Nb5 {[%clk 0:00:08]}  b3 {[%clk 0:00:44]} 37. Rc3 {[%clk 0:00:06]}  b2 {[%clk 0:00:44]} 38. Rb3 {[%clk 0:00:06]}  Kf8 {[%clk 0:00:38]} 39. Kg2 {[%clk 0:00:01]}  Ke7 {[%clk 0:00:36]} 40. f3 {[%clk 0:00:01]}  f5 {[%clk 0:00:36]} 41. fxe4 {[%clk 0:00:02]}  fxe4 {[%clk 0:00:36]} 42. Kg1 {[%clk 0:00:02]}  Kd7 {[%clk 0:00:33]} 43. Kg2 {[%clk 0:00:01]}  Ra8 {[%clk 0:00:28]} 44. g4 {[%clk 0:00:01]}  hxg4 {[%clk 0:00:16]} 45. Kg3 {[%clk 0:00:02]}  Kc8 {[%clk 0:00:07]} 46. Kxg4 {[%clk 0:00:02]}  Ra1 {[%clk 0:00:06]} 47. Rc3 {[%clk 0:00:00]}  Nc5 {[%clk 0:00:03]} 0-1

[Event "December 5 Early 2023"]
[Site "https://www.chess.com"]
[Date "2023.12.05"]
[Round "4"]
[White "Aswath, S"]
[Black "Palmer, Reegan"]
[Result "1-0"]
[Board "107"]
[TimeControl "180+1"]
[WhiteFideId "46694919"]
[BlackFideId "14322145"]
[WhiteElo "2608"]
[BlackElo "2229"]
[WhiteTeam "IND"]
[BlackTeam "RSA"]
[WhiteClock "0:00:18"]
[BlackClock "0:00:08"]

1. c4 {[%clk 0:03:00]}  c5 {[%clk 0:02:56]} 2. g3 {[%clk 0:02:56]}  g6 {[%clk 0:02:55]} 3. Bg2 {[%clk 0:02:55]}  Bg7 {[%clk 0:02:55]} 4. Nf3 {[%clk 0:02:55]}  Nc6 {[%clk 0:02:55]} 5. O-O {[%clk 0:02:55]}  d6 {[%clk 0:02:56]} 6. Nc3 {[%clk 0:02:55]}  e5 {[%clk 0:02:56]} 7. d3 {[%clk 0:02:54]}  Nge7 {[%clk 0:02:56]} 8. a3 {[%clk 0:02:53]}  O-O {[%clk 0:02:55]} 9. Ne1 {[%clk 0:02:52]}  f5 {[%clk 0:02:49]} 10. Nc2 {[%clk 0:02:37]}  a5 {[%clk 0:02:37]} 11. Bg5 {[%clk 0:02:34]}  a4 {[%clk 0:02:34]} 12. Ne3 {[%clk 0:02:31]}  h6 {[%clk 0:02:32]} 13. Bxe7 {[%clk 0:02:30]}  Nxe7 {[%clk 0:02:32]} 14. Nxa4 {[%clk 0:02:29]}  Be6 {[%clk 0:02:30]} 15. Nc3 {[%clk 0:02:22]}  f4 {[%clk 0:02:26]} 16. Ned5 {[%clk 0:02:22]}  g5 {[%clk 0:02:17]} 17. e3 {[%clk 0:02:06]}  Nxd5 {[%clk 0:02:04]} 18. Nxd5 {[%clk 0:02:04]}  Rb8 {[%clk 0:01:42]} 19. Rb1 {[%clk 0:01:55]}  b5 {[%clk 0:01:25]} 20. b4 {[%clk 0:01:31]}  bxc4 {[%clk 0:01:09]} 21. dxc4 {[%clk 0:01:30]}  Bf5 {[%clk 0:00:50]} 22. Rb3 {[%clk 0:01:30]}  cxb4 {[%clk 0:00:42]} 23. axb4 {[%clk 0:01:29]}  Qd7 {[%clk 0:00:31]} 24. b5 {[%clk 0:01:16]}  Bg4 {[%clk 0:00:25]} 25. f3 {[%clk 0:01:16]}  Bh3 {[%clk 0:00:19]} 26. g4 {[%clk 0:01:16]}  Bxg2 {[%clk 0:00:19]} 27. Kxg2 {[%clk 0:01:17]}  e4 {[%clk 0:00:17]} 28. exf4 {[%clk 0:01:10]}  gxf4 {[%clk 0:00:15]} 29. h3 {[%clk 0:00:45]}  e3 {[%clk 0:00:14]} 30. Qd3 {[%clk 0:00:44]}  Rbe8 {[%clk 0:00:13]} 31. b6 {[%clk 0:00:43]}  Rb8 {[%clk 0:00:04]} 32. Rfb1 {[%clk 0:00:39]}  h5 {[%clk 0:00:04]} 33. b7 {[%clk 0:00:37]}  hxg4 {[%clk 0:00:05]} 34. hxg4 {[%clk 0:00:38]}  Qd8 {[%clk 0:00:05]} 35. Rh1 {[%clk 0:00:36]}  Rf7 {[%clk 0:00:03]} 36. Qh7+ {[%clk 0:00:27]}  Kf8 {[%clk 0:00:03]} 37. Qe4 {[%clk 0:00:21]}  Kg8 {[%clk 0:00:04]} 38. Nxf4 {[%clk 0:00:20]}  Qf6 {[%clk 0:00:03]} 39. Ne6 {[%clk 0:00:19]}  Re7 {[%clk 0:00:03]} 40. Qh7+ {[%clk 0:00:18]}  Kf7 {[%clk 0:00:03]} 41. Nxg7 {[%clk 0:00:16]}  Qxg7 {[%clk 0:00:04]} 42. Qxg7+ {[%clk 0:00:16]}  Kxg7 {[%clk 0:00:05]} 43. Re1 {[%clk 0:00:16]}  Kg6 {[%clk 0:00:05]} 44. Rexe3 {[%clk 0:00:16]}  Rxe3 {[%clk 0:00:06]} 45. Rxe3 {[%clk 0:00:16]}  Rxb7 {[%clk 0:00:07]} 46. Re6+ {[%clk 0:00:17]}  Kf7 {[%clk 0:00:08]} 47. Rxd6 {[%clk 0:00:17]}  Rc7 {[%clk 0:00:08]} 48. Rd4 {[%clk 0:00:17]}  Kf6 {[%clk 0:00:08]} 49. Kg3 {[%clk 0:00:18]}  Ke5 {[%clk 0:00:09]} 50. Re4+ {[%clk 0:00:18]}  Kf6 {[%clk 0:00:09]} 51. f4 {[%clk 0:00:19]}  Rxc4 {[%clk 0:00:08]} 52. Rxc4 {[%clk 0:00:18]} 1-0

[Event "December 5 Early 2023"]
[Site "https://www.chess.com"]
[Date "2023.12.05"]
[Round "4"]
[White "Olenik Campa, Rudi"]
[Black "Yushko, Olga"]
[Result "1-0"]
[Board "108"]
[TimeControl "180+1"]
[WhiteFideId "14633264"]
[BlackFideId "14114500"]
[WhiteElo "2607"]
[BlackElo "2118"]
[WhiteTeam "SLO"]
[BlackTeam "UKR"]
[WhiteClock "0:00:05"]
[BlackClock "0:00:00"]

1. e4 {[%clk 0:03:00]}  e6 {[%clk 0:02:59]} 2. d4 {[%clk 0:02:58]}  d5 {[%clk 0:03:00]} 3. exd5 {[%clk 0:02:59]}  exd5 {[%clk 0:03:00]} 4. Nf3 {[%clk 0:03:00]}  Nf6 {[%clk 0:03:00]} 5. Bd3 {[%clk 0:03:00]}  Be7 {[%clk 0:03:00]} 6. O-O {[%clk 0:03:00]}  O-O {[%clk 0:03:01]} 7. Re1 {[%clk 0:03:00]}  Bg4 {[%clk 0:03:00]} 8. Nc3 {[%clk 0:02:59]}  c5 {[%clk 0:02:59]} 9. dxc5 {[%clk 0:02:58]}  Bxc5 {[%clk 0:03:00]} 10. h3 {[%clk 0:02:59]}  Bh5 {[%clk 0:02:59]} 11. Be2 {[%clk 0:02:56]}  Nc6 {[%clk 0:02:58]} 12. Bg5 {[%clk 0:02:55]}  d4 {[%clk 0:02:43]} 13. Ne4 {[%clk 0:02:50]}  Be7 {[%clk 0:02:39]} 14. Ng3 {[%clk 0:02:49]}  Bg6 {[%clk 0:02:37]} 15. Nh4 {[%clk 0:02:49]}  Qb6 {[%clk 0:02:26]} 16. Nhf5 {[%clk 0:02:47]}  Bb4 {[%clk 0:02:24]} 17. Rf1 {[%clk 0:02:42]}  Nd5 {[%clk 0:02:03]} 18. Bf3 {[%clk 0:02:37]}  Nde7 {[%clk 0:01:40]} 19. Nh4 {[%clk 0:02:20]}  Qb5 {[%clk 0:01:27]} 20. Qc1 {[%clk 0:02:13]}  Rac8 {[%clk 0:01:21]} 21. Nxg6 {[%clk 0:02:09]}  hxg6 {[%clk 0:01:18]} 22. Bd2 {[%clk 0:02:09]}  Bxd2 {[%clk 0:01:14]} 23. Qxd2 {[%clk 0:02:10]}  Nb4 {[%clk 0:01:11]} 24. c3 {[%clk 0:02:04]}  dxc3 {[%clk 0:01:09]} 25. bxc3 {[%clk 0:02:04]}  Nbc6 {[%clk 0:01:08]} 26. Rab1 {[%clk 0:02:03]}  Qa6 {[%clk 0:01:06]} 27. Rfe1 {[%clk 0:01:59]}  Rfd8 {[%clk 0:01:03]} 28. Qg5 {[%clk 0:01:58]}  Rc7 {[%clk 0:00:58]} 29. h4 {[%clk 0:01:58]}  Qa5 {[%clk 0:00:57]} 30. Rb5 {[%clk 0:01:43]}  Qxc3 {[%clk 0:00:55]} 31. Rc1 {[%clk 0:01:27]}  Qf6 {[%clk 0:00:49]} 32. Qg4 {[%clk 0:01:00]}  Ne5 {[%clk 0:00:44]} 33. Rxc7 {[%clk 0:00:45]}  Nxg4 {[%clk 0:00:43]} 34. Bxg4 {[%clk 0:00:46]}  Qf4 {[%clk 0:00:29]} 35. Rxe7 {[%clk 0:00:42]}  Qxg4 {[%clk 0:00:29]} 36. Re4 {[%clk 0:00:36]}  Qd1+ {[%clk 0:00:23]} 37. Kh2 {[%clk 0:00:36]}  b6 {[%clk 0:00:21]} 38. a4 {[%clk 0:00:34]}  Qd3 {[%clk 0:00:20]} 39. Rbe5 {[%clk 0:00:29]}  a6 {[%clk 0:00:19]} 40. Rb4 {[%clk 0:00:26]}  b5 {[%clk 0:00:19]} 41. axb5 {[%clk 0:00:26]}  axb5 {[%clk 0:00:20]} 42. Rexb5 {[%clk 0:00:26]}  Qd1 {[%clk 0:00:16]} 43. Rb8 {[%clk 0:00:24]}  Rxb8 {[%clk 0:00:16]} 44. Rxb8+ {[%clk 0:00:25]}  Kh7 {[%clk 0:00:16]} 45. Rb4 {[%clk 0:00:23]}  Qd6 {[%clk 0:00:16]} 46. Rb3 {[%clk 0:00:21]}  Qf4 {[%clk 0:00:15]} 47. Rf3 {[%clk 0:00:17]}  Qxh4+ {[%clk 0:00:16]} 48. Kg1 {[%clk 0:00:17]}  Qc4 {[%clk 0:00:15]} 49. Nf1 {[%clk 0:00:17]}  g5 {[%clk 0:00:15]} 50. Rh3+ {[%clk 0:00:17]}  Kg6 {[%clk 0:00:15]} 51. Re3 {[%clk 0:00:18]}  f6 {[%clk 0:00:15]} 52. g3 {[%clk 0:00:18]}  Kf7 {[%clk 0:00:14]} 53. Nh2 {[%clk 0:00:18]}  Qc1+ {[%clk 0:00:13]} 54. Kg2 {[%clk 0:00:18]}  Qc6+ {[%clk 0:00:14]} 55. Kg1 {[%clk 0:00:18]}  f5 {[%clk 0:00:14]} 56. Rf3 {[%clk 0:00:18]}  Kg6 {[%clk 0:00:13]} 57. Re3 {[%clk 0:00:16]}  f4 {[%clk 0:00:13]} 58. Rf3 {[%clk 0:00:15]}  Kf5 {[%clk 0:00:10]} 59. Kf1 {[%clk 0:00:09]}  Qc1+ {[%clk 0:00:09]} 60. Kg2 {[%clk 0:00:09]}  g6 {[%clk 0:00:09]} 61. Rb3 {[%clk 0:00:03]}  Qc6+ {[%clk 0:00:06]} 62. Kg1 {[%clk 0:00:03]}  fxg3 {[%clk 0:00:06]} 63. Rxg3 {[%clk 0:00:03]}  Qc1+ {[%clk 0:00:05]} 64. Kg2 {[%clk 0:00:03]}  Qc6+ {[%clk 0:00:06]} 65. Kg1 {[%clk 0:00:03]}  Qe4 {[%clk 0:00:06]} 66. Rf3+ {[%clk 0:00:03]}  Ke5 {[%clk 0:00:05]} 67. Rg3 {[%clk 0:00:04]}  Qf4 {[%clk 0:00:05]} 68. Rf3 {[%clk 0:00:04]}  Qe4 {[%clk 0:00:04]} 69. Re3 {[%clk 0:00:04]}  Kf4 {[%clk 0:00:04]} 70. Rxe4+ {[%clk 0:00:04]}  Kxe4 {[%clk 0:00:04]} 71. Kg2 {[%clk 0:00:05]}  Kf4 {[%clk 0:00:00]} 72. f3 {[%clk 0:00:05]} 1-0

[Event "December 5 Early 2023"]
[Site "https://www.chess.com"]
[Date "2023.12.05"]
[Round "4"]
[White "Donchenko, Alexander"]
[Black "Saravana, Krishnan P."]
[Result "1-0"]
[Board "110"]
[TimeControl "180+1"]
[WhiteFideId "24603295"]
[BlackFideId "5018382"]
[WhiteElo "2903"]
[BlackElo "2544"]
[WhiteTeam "GER"]
[BlackTeam "IND"]
[WhiteClock "0:00:55"]
[BlackClock "0:00:00"]

1. Nf3 {[%clk 0:03:00]}  d5 {[%clk 0:02:59]} 2. g3 {[%clk 0:03:01]}  Nf6 {[%clk 0:02:59]} 3. Bg2 {[%clk 0:03:01]}  c6 {[%clk 0:02:59]} 4. O-O {[%clk 0:03:01]}  Bf5 {[%clk 0:02:59]} 5. d3 {[%clk 0:03:00]}  h6 {[%clk 0:02:58]} 6. c4 {[%clk 0:03:00]}  e6 {[%clk 0:02:58]} 7. Qb3 {[%clk 0:02:58]}  Qb6 {[%clk 0:02:57]} 8. Be3 {[%clk 0:02:58]}  Qxb3 {[%clk 0:02:55]} 9. axb3 {[%clk 0:02:59]}  a6 {[%clk 0:02:54]} 10. Nc3 {[%clk 0:02:55]}  Nbd7 {[%clk 0:02:53]} 11. Rfd1 {[%clk 0:02:52]}  Be7 {[%clk 0:02:38]} 12. Nd4 {[%clk 0:02:48]}  Bg6 {[%clk 0:02:23]} 13. cxd5 {[%clk 0:02:48]}  exd5 {[%clk 0:02:22]} 14. Bf4 {[%clk 0:02:43]}  O-O {[%clk 0:02:20]} 15. Bh3 {[%clk 0:02:42]}  Bc5 {[%clk 0:01:55]} 16. Nf5 {[%clk 0:02:38]}  Rfe8 {[%clk 0:01:14]} 17. Kf1 {[%clk 0:02:27]}  Bh5 {[%clk 0:00:57]} 18. f3 {[%clk 0:02:19]}  Bg6 {[%clk 0:00:54]} 19. Nd6 {[%clk 0:02:18]}  Bxd6 {[%clk 0:00:48]} 20. Bxd6 {[%clk 0:02:19]}  d4 {[%clk 0:00:29]} 21. Ne4 {[%clk 0:02:11]}  Rad8 {[%clk 0:00:20]} 22. Bc7 {[%clk 0:02:07]}  Ra8 {[%clk 0:00:20]} 23. Bf4 {[%clk 0:01:54]}  Nb6 {[%clk 0:00:18]} 24. Nc5 {[%clk 0:01:49]}  Nbd5 {[%clk 0:00:17]} 25. Bd2 {[%clk 0:01:45]}  Re7 {[%clk 0:00:17]} 26. Ra4 {[%clk 0:01:41]}  Rae8 {[%clk 0:00:16]} 27. Re1 {[%clk 0:01:37]}  Ne3+ {[%clk 0:00:14]} 28. Bxe3 {[%clk 0:01:36]}  dxe3 {[%clk 0:00:14]} 29. Rb4 {[%clk 0:01:33]}  b5 {[%clk 0:00:13]} 30. Nxa6 {[%clk 0:01:31]}  Nd5 {[%clk 0:00:13]} 31. Rd4 {[%clk 0:01:29]}  f5 {[%clk 0:00:13]} 32. Rc1 {[%clk 0:01:28]}  Re6 {[%clk 0:00:09]} 33. Nc5 {[%clk 0:01:16]}  Rf6 {[%clk 0:00:09]} 34. f4 {[%clk 0:01:07]}  Bf7 {[%clk 0:00:08]} 35. Nd7 {[%clk 0:01:05]}  Rd6 {[%clk 0:00:08]} 36. Bxf5 {[%clk 0:01:03]}  Ra8 {[%clk 0:00:08]} 37. Ne5 {[%clk 0:01:02]}  Ra2 {[%clk 0:00:07]} 38. Nxc6 {[%clk 0:00:58]}  Rxb2 {[%clk 0:00:07]} 39. Be4 {[%clk 0:00:57]}  Nxf4 {[%clk 0:00:00]} 40. Rxd6 {[%clk 0:00:55]} 1-0

[Event "December 5 Early 2023"]
[Site "https://www.chess.com"]
[Date "2023.12.05"]
[Round "4"]
[White "Lewicki, Miroslaw"]
[Black "Kislinsky, Alexey"]
[Result "0-1"]
[Board "112"]
[TimeControl "180+1"]
[WhiteFideId "1113380"]
[BlackFideId "14108801"]
[WhiteElo "2540"]
[BlackElo "2713"]
[WhiteTeam "POL"]
[BlackTeam "CZE"]
[WhiteClock "0:00:14"]
[BlackClock "0:02:01"]

1. b3 {[%clk 0:03:00]}  d5 {[%clk 0:02:58]} 2. Bb2 {[%clk 0:03:01]}  Bf5 {[%clk 0:02:58]} 3. g3 {[%clk 0:03:02]}  e6 {[%clk 0:02:58]} 4. Bg2 {[%clk 0:03:02]}  Nf6 {[%clk 0:02:59]} 5. Nf3 {[%clk 0:03:02]}  Be7 {[%clk 0:02:56]} 6. O-O {[%clk 0:03:02]}  O-O {[%clk 0:02:57]} 7. d3 {[%clk 0:03:03]}  h6 {[%clk 0:02:55]} 8. Nbd2 {[%clk 0:03:03]}  Bh7 {[%clk 0:02:55]} 9. Re1 {[%clk 0:03:04]}  c5 {[%clk 0:02:53]} 10. e4 {[%clk 0:03:04]}  Nc6 {[%clk 0:02:53]} 11. h3 {[%clk 0:03:01]}  Rc8 {[%clk 0:02:52]} 12. a3 {[%clk 0:03:01]}  b5 {[%clk 0:02:51]} 13. Qe2 {[%clk 0:03:01]}  a5 {[%clk 0:02:50]} 14. Rad1 {[%clk 0:03:01]}  Qc7 {[%clk 0:02:46]} 15. Kh2 {[%clk 0:02:30]}  Rfd8 {[%clk 0:02:43]} 16. e5 {[%clk 0:02:30]}  Nd7 {[%clk 0:02:43]} 17. c3 {[%clk 0:02:26]}  d4 {[%clk 0:02:41]} 18. cxd4 {[%clk 0:02:23]}  cxd4 {[%clk 0:02:40]} 19. Nxd4 {[%clk 0:02:20]}  Nxd4 {[%clk 0:02:39]} 20. Bxd4 {[%clk 0:02:20]}  Nc5 {[%clk 0:02:40]} 21. Qe3 {[%clk 0:02:03]}  Nxd3 {[%clk 0:02:37]} 22. Bb6 {[%clk 0:02:03]}  Qc2 {[%clk 0:02:20]} 23. Rf1 {[%clk 0:01:38]}  Bc5 {[%clk 0:02:10]} 24. Bxc5 {[%clk 0:01:35]}  Qxc5 {[%clk 0:02:10]} 25. Qxc5 {[%clk 0:01:31]}  Rxc5 {[%clk 0:02:11]} 26. f4 {[%clk 0:01:09]}  Rc2 {[%clk 0:02:04]} 27. Kh1 {[%clk 0:00:14]}  Nb2 {[%clk 0:02:01]} 0-1